Cogmind - Beta 14 @@@ ROGUE MODE // 2024.12.06 @ 18:14:29 Player: Jammed Result: Destroyed by as-06138 with Assembled Heavy Rifle Performance ------------- Evolutions (0) 0 Regions Visited (2) 400 Robots Destroyed (25) 125 Value Destroyed (272) 272 Prototype IDs (0) 0 Alien Tech Used (0) 0 Bonus (0) 0 TOTAL SCORE: 797 Bonus ------- None Cogmind --------- Core Integrity 0/250 Matter 185/300 Energy 100/100 System Corruption 1% Temperature Cool (0) Movement Core (200) Ox3 Location -10/Mines Parts ------- > --- POWER (1) -------- (None) > --- PROPULSION (2) --- (None) > --- UTILITY (2) ------ Medium Storage Unit > --- WEAPON (2) ------- (None) > --- INVENTORY (10) --- Ion Engine Aluminum Leg High-capacity Battery (250) Sensor Array Seismic Detector EM Pulse Gun Medium Laser Medium Laser Beam Cannon Mining Laser Peak State ------------ > --- POWER ------------ Ion Engine > --- PROPULSION ------- Aluminum Leg Aluminum Leg > --- UTILITY ---------- Medium Storage Unit Seismic Detector > --- WEAPON ----------- Medium Laser Medium Laser > --- INVENTORY -------- Ion Engine Aluminum Leg High-capacity Battery Sensor Array Seismic Detector EM Pulse Gun EM Pulse Gun Medium Laser Beam Cannon Mining Laser [Rating: 8] Favorites ----------- Power Ion Engine Engine Ion Engine Propulsion Aluminum Leg Leg Aluminum Leg Utility Seismic Detector Device Seismic Detector Storage Medium Storage Unit Protection Light Armor Plating Weapon Medium Laser Energy Gun Medium Laser Launcher Grenade Launcher Build | -11 -10 -10 ------- Run | Yrd Mat Min Slots Evolved . | . . . Power . | . . . Propulsion . | . . . Utility . | . . . Weapon . | . . . Parts Attached 14 | 2 8 4 Power 2 | . 2 . Engine 2 | . 2 . Core . | . . . Reactor . | . . . Propulsion 2 | . 2 . Treads . | . . . Leg 2 | . 2 . Wheel . | . . . Hover . | . . . Flight . | . . . Utility 6 | 1 2 3 Device 3 | 1 1 1 Storage 1 | . 1 . Processor . | . . . Hackware . | . . . Protection 2 | . . 2 Artifact . | . . . Weapon 4 | 1 2 1 Energy Gun 3 | 1 2 . Energy Cannon . | . . . Ballistic Gun . | . . . Ballistic Cannon . | . . . Launcher 1 | . . 1 Special Weapon . | . . . Impact Weapon . | . . . Slashing Weapon . | . . . Piercing Weapon . | . . . Special Melee Weapon . | . . . Unidentified Prototypes . | . . . Parts Lost 5 | . . 5 Power 1 | . . 1 Propulsion 2 | . . 2 Utility 1 | . . 1 Weapon 1 | . . 1 Highest Loss Streak 5 | . . 5 To Critical Strikes . | . . . Average Slot Usage (%) 99 | . 99 93 Engine 14 | . 14 14 Leg 27 | . 27 26 Device 13 | . 14 12 Storage 14 | . 14 14 Energy Gun 27 | . 28 20 Peak Build Rating 8 | 7 8 8 Average Rating 7 | 6 7 7 On Entrance 7 | 6 7 8 Naked Turns . | . . . Heaviest Build 22 | 13 20 22 Greatest Support 20 | 20 20 20 Greatest Overweight (x) 1 | . 1 1 Average Overweight (x) . | . . . Largest Inventory Capacity 10 | 8 10 10 Average Capacity 9 | 8 9 10 Most Carried 10 | 7 10 10 Average Carried 8 | 6 9 9 Final Capacity 10 | 8 10 10 Final Carried 10 | 7 10 10 Class Distribution -------------------- 100% | Mutant Dominant Class ---------------- Mutant | -10/Materials Mutant | -10/Mines Resources | -11 -10 -10 ----------- Run | Yrd Mat Min Matter Collected 300 | 220 80 . Remotely . | . . . Salvage Created 599 | 104 452 43 Parts 52 | 6 44 2 Haulers Intercepted 2 | . 2 . Recyclers Shooed . | . . . Parts Field Recycled . | . . . Retrieved Matter . | . . . Parts Self-Destructed . | . . . Prevented . | . . . Kills | -11 -10 -10 ------- Run | Yrd Mat Min Combat Hostiles Destroyed 23 | . 14 9 Guns 15 | . 14 1 AOE 8 | . . 8 Classes Destroyed 8 | 2 5 1 Worker 2 | . 2 . Tunneler 2 | 2 . . Hauler 2 | . 2 . Recycler 1 | 1 . . Watcher 3 | . 3 . Swarmer 13 | . 12 1 Grunt 2 | . 2 . Assembled 8 | . . 8 Best Kill Streak 8 | 2 4 8 Combat Bots Only 8 | . 3 8 Max Kills in Single Turn 4 | 1 2 4 Gunslinging . | . . . Exploded 4 | . . 4 Melee . | . . . Uniques/NPCs Destroyed . | . . . Combat | -11 -10 -10 -------- Run | Yrd Mat Min Hostile Shots Fired 70 | . 49 21 Missed 20 | . 13 7 Damage Taken 808 | . 307 501 Core 256 | . 89 167 Absorbed by Shields . | . . . Core Remaining (%) 100 | 100 . . Volleys Fired 73 | 8 52 13 Largest 2 | 2 2 2 Hottest 100 | 100 100 100 Shots Fired 136 | 16 104 16 Gun 126 | 16 104 6 Cannon . | . . . Launcher 10 | . . 10 Special . | . . . Kinetic . | . . . Thermal 126 | 16 104 6 Explosive 10 | . . 10 Electromagnetic . | . . . Robot Hit Streak 13 | 2 13 8 Robot Miss Streak 5 | 5 4 4 Penetration Max . | . . . Secondary Targets 2 | . 2 . Max Gunslinging Chain 1 | . 1 . Shots Hit Robots 78 | 5 65 8 Core Hits 58 | 4 26 28 Critical Kills . | . . . Critical Parts Destroyed . | . . . Critical Strikes 3 | 2 1 . Burn 3 | 2 1 . Melee Attacks . | . . . Impact . | . . . Slashing . | . . . Piercing . | . . . Sneak Attacks . | . . . Combat Hostiles . | . . . Follow-up Attacks . | . . . Damage Inflicted 1452 | 74 821 557 Guns 908 | 74 821 13 Cannons . | . . . Explosions 544 | . . 544 Melee . | . . . Ramming . | . . . Kinetic . | . . . Thermal 908 | 74 821 13 Explosive 544 | . . 544 Electromagnetic . | . . . Impact . | . . . Slashing . | . . . Piercing . | . . . Highest Corruption 1 | . . 1 Average Corruption 1 | . . 1 Corruption Purged . | . . . Corruption Blocked . | . . . Overload Shots . | . . . Overflow Damage 14 | . . 14 Projectiles . | . . . Explosions 14 | . . 14 Melee . | . . . Knockbacks . | . . . Impact . | . . . Kinetic . | . . . Secondary . | . . . Self-Inflicted Damage 81 | . . 81 Shots 3 | . . 3 Rammed . | . . . Targets Rammed . | . . . Kicked . | . . . Crushed . | . . . Highest Temperature 273 | 273 273 117 Average Temperature 100 | 125 98 62 Received Heat Transfer 48 | . 48 . Effects 2 | . 2 . Energy Bleed 1 | . 1 . Interference 1 | . 1 . Siege Activations . | . . . Robots Corrupted . | . . . Combat Hostiles . | . . . Parts Fried . | . . . Impact Corruptions . | . . . Robots Melted . | . . . Combat Hostiles . | . . . Parts Melted 8 | 1 7 . Heat Transferred 2923 | 370 2516 37 Parts Sabotaged . | . . . Parts Stolen . | . . . Parts Stripped . | . . . Power Chain Reactions . | . . . Alert | -11 -10 -10 ------- Run | Yrd Mat Min Peak Influence 246 | 15 246 110 Initial 20 | . 9 20 Average 108 | 8 115 57 Maximum Alert Level 1 | . 1 . Low Security (%) 96 | 100 95 100 Level 1 3 | . 4 . Level 2 . | . . . Level 3 . | . . . Level 4 . | . . . Level 5 . | . . . High Security . | . . . Max Security . | . . . Squads Dispatched 3 | . 3 . Investigation 2 | . 2 . Extermination . | . . . Reinforcement 1 | . 1 . Assault . | . . . Garrison . | . . . Intercept . | . . . Searches Triggered . | . . . Construction Impeded . | . . . Haulers Reinforced . | . . . Active Scanning Responses . | . . . Cargo Convoy Interrupts . | . . . Stealth | -11 -10 -10 --------- Run | Yrd Mat Min Distress Signals . | . . . Communications Jammed . | . . . Distress Signals . | . . . Times Spotted 35 | . 18 17 Peak Tracking Total 7 | . 4 7 Tactical Retreats 2 | . 1 1 Traps | -11 -10 -10 ------- Run | Yrd Mat Min Traps Triggered 2 | . 2 . Indirectly . | . . . Trap Hack Attempts . | . . . Triggered . | . . . Disarmed . | . . . Reprogrammed . | . . . Reused . | . . . Traps Extracted . | . . . Installed . | . . . Triggered . | . . . Machines | -11 -10 -10 ---------- Run | Yrd Mat Min Machines Disabled . | . . . Max in Single Turn . | . . . Machines Repaired . | . . . Machines Dismantled . | . . . Machines Sabotaged . | . . . Overloaded Fab Kills . | . . . Hacking | -11 -10 -10 --------- Run | Yrd Mat Min Machines Accessed 7 | . 7 . Terminals 7 | . 7 . Fabricators . | . . . Repair Stations . | . . . Recycling Units . | . . . Scanalyzers . | . . . Garrison Access . | . . . Total Hacks 19 | . 19 . Successful 8 | . 8 . Failed 11 | . 11 . Catastrophic . | . . . Database Lockouts . | . . . Manual 18 | . 18 . Terminals 19 | . 19 . Fabricators . | . . . Repair Stations . | . . . Recycling Units . | . . . Scanalyzers . | . . . Garrison Access . | . . . Terminal Hacks 1 | . 1 . Zone Layout 1 | . 1 . Fabricator Hacks . | . . . Repair Station Hacks . | . . . Recycling Unit Hacks . | . . . Scanalyzer . | . . . Garrison Access Hacks . | . . . Unauthorized Hacks 7 | . 7 . Terminals 7 | . 7 . Botnet 2 | . 2 . Skim 5 | . 5 . Fabricators . | . . . Repair Stations . | . . . Recycling Units . | . . . Scanalyzers . | . . . Garrison Access . | . . . Data Cores Recovered . | . . . Used . | . . . Hacking Detections 6 | . 6 . Full Trace Events 4 | . 4 . Feedback Events . | . . . Feedback Blocked . | . . . Robot Schematics Acquired . | . . . Robots Built . | . . . Authchips . | . . . Time . | . . . Total Robot Build Rating . | . . . Part Schematics Acquired . | . . . Parts Built . | . . . Authchips . | . . . Time . | . . . Total Part Build Rating . | . . . Parts Repaired . | . . . Time . | . . . Parts Recycled . | . . . Recycled Matter . | . . . Retrieved Matter . | . . . Retrieved Components . | . . . Parts Scanalyzed . | . . . Part Schematics Acquired . | . . . Parts Damaged . | . . . Bothacking | -11 -10 -10 ------------ Run | Yrd Mat Min Used RIF Installer . | . . . Robots Hacked . | . . . Non-combat . | . . . Combat . | . . . Robot Hacks Applied . | . . . Relay Couplers Released . | . . . Fabnet Peak Effective % . | . . . Robots Rewired . | . . . Allies Hacked . | . . . Hacks Repelled . | . . . Allies | -11 -10 -10 -------- Run | Yrd Mat Min Total Allies . | . . . Largest Group . | . . . Highest-Rated Group . | . . . Highest-Rated Ally . | . . . Total Orders . | . . . Ally Attacks . | . . . Total Damage . | . . . Kills . | . . . Allies Corrupted . | . . . Allies Melted . | . . . Intel | -11 -10 -10 ------- Run | Yrd Mat Min Robot Analysis Total . | . . . Derelict Logs Recovered . | . . . Drone Launches . | . . . Drone Recoveries . | . . . Exploration | -11 -10 -10 ------------- Run | Yrd Mat Min Turns Passed 1538 | 68 1393 77 Spaces Moved 763 | 34 721 8 Core . | . . . Treads . | . . . Legs 763 | 34 721 8 Wheels . | . . . Hover . | . . . Flight . | . . . Fastest Speed 120 | 120 120 120 Average Speed 120 | 120 120 137 Slowest Speed 190 | 120 190 190 Overloaded Moves . | . . . Propulsion Burnouts . | . . . Robots Hopped . | . . . Cave-ins Triggered . | . . . Exploration Rate (%) 36 | 4 98 6 Regions Visited 2 Branch Regions 1 Pre-discovered Areas 1 | . . 1 Known Exits Taken . | . . . Unknown Exits Taken 2 | 1 1 . Scrap Searched . | . . . Spaces Dug 24 | . . 24 Terrain Destroyed 64 | . . 64 Melee . | . . . Projectile . | . . . AOE 64 | . . 64 Terrain Rammed . | . . . Walls Destroyed . | . . . Machines Disabled . | . . . Actions | -11 -10 -10 --------- Run | Yrd Mat Min Total 1245 | 44 1144 57 Wait 371 | . 341 30 Move 761 | 33 720 8 Hop . | . . . Pick Up 13 | 1 12 . Fast Attach 5 | 1 4 . Attach . | . . . Detach 1 | . . 1 Swap 9 | 1 4 4 Drop 12 | . 11 1 Fire 73 | 8 52 13 Melee . | . . . Ram . | . . . Kick . | . . . Crush . | . . . Escape Stasis . | . . . Rewire . | . . . Trap . | . . . Miscellaneous . | . . . Route ------- -11/Scrapyard -10/Materials (discovered 5 exits: [*Mat x3] / [*Min] / [*Sub]) -10/Mines History --------- Turn | Location | Event 1 | -11/Scrapyard | Discovered new exit (range 2) 69 | -11/Scrapyard | Entered Materials 227 | -10/Materials | Discovered new exit (range 10) 303 | -10/Materials | Build established: Mutant 544 | -10/Materials | Discovered new exit (range 9) 615 | -10/Materials | Discovered new exit (range 8) 680 | -10/Materials | Discovered new exit (range 16) 1011 | -10/Materials | Discovered new exit (range 8) 1462 | -10/Materials | Entered Mines 1463 | -10/Mines | Learned location of Storage (-7) 1467 | -10/Mines | Assembled infested the area 1494 | -10/Mines | Met a Derelict bent on vengeance 1519 | -10/Mines | Core integrity fell below 50% 1537 | -10/Mines | Core integrity fell below 20% 1539 | -10/Mines | Destroyed by as-06138 with Assembled Heavy Rifle Last Messages --------------- 01518_ as-88117 destroyed. 01520_ as-95821 destroyed. 01522_ Destroyed Asb. F-torch. 01523_ The unstable cave ceiling collapses. 01524_ as-37019 destroyed. 01524_ as-80393 destroyed. 01524_ as-51137 destroyed. 01526_ as-28290 destroyed. 01526_ as-04929 destroyed. 01527_ The unstable cave ceiling collapses. 01527_ Aluminum Leg destroyed. 01527_ System corrupted by crushing effect (+1). 01528_ Destroyed Asb. Hover Unit. 01530_ as-99828 destroyed. 01530_ Aluminum Leg destroyed. 01534_ Ion Engine destroyed. 01534_ Lgt. Armor Plating destroyed. 01537_ The unstable cave ceiling collapses. 01538_ Grenade Launcher destroyed. 01539_ The unstable cave ceiling collapses. Map ----- +----------------------------------------------------+ | ??????????????????????????????????????? | | ??????????????????????????????????????? | | ??????????????????????????????????????? | | ??????????????????????????????????????? | | ??????????????????????????????????????? | | ??????????????????????????????????????? | | ??????????????????????????????????????? | | ??????????????????????????????????????? | | ??????????????????????????????????????? | | ??????????????????????????????????????? | | ??????????????????????? ??? ??????????? | | ??????????????????????# ### ????????? | | ????????????????????### ??????? | | ????????????????????# ??????? | | ????????????????????# ???????? | | ????????????????????# ???????? | | ????????????????????? ????????? | | ????????????????????? ????????? | | ?????????????????????? ?????????? | | ?????????????????????? ?????????? | | ?????????????????????## #?????????? | | ????????????????????## ###???????? | | ????????????????????# #???????? | | ?????????????????#### #???????? | | ?????????????????# # #???????? | | ??????????????# aa [ @ #???????? | | ??????????????# a #??????? | | ??????????????# % % ##??????? | | ??????????????# ##???????? | | ??????????????## # ##???????? | | ???????????????# ## ##????????? | | ???????????????########?#####?????????? | | ??????????????????????????????????????? | | | | | | | | | | | | | | | | | | | | | | | | | | | | | | | | | | | +----------------------------------------------------+ Best States ------------- Heat Dissipation 25 Energy Generation 10 Energy Capacity 250 Matter Stores 300 Matter Capacity 300 Sight Range 16 Robot Scan Range 14 Terrain Scan Density 10 Armor Coverage 150 Evasion (%) 55 Item Schematics ----------------- None Robot Schematics ------------------ None Fabricated ------------ Nothing Alien Tech Used ----------------- None Achievements -------------- None Challenges ------------ None Game ------ Seed FluxWeldingPick Manual? 0 Play Time 00:14:10 Cumulative 228.3 hours Start 2024.12.06 @ 18:00:53 End 2024.12.06 @ 18:14:29 Sessions 1 Manual Loads 0 Difficulty Rogue Special Mode None Game No. 147 Rogue 147 Adventurer 0 Explorer 0 Win Type - Total 2 Types 1/0/0/1/0/0/0/0/0 Lore% 72 Gallery% 66 Achievement% 60 Wizard Run 0 Options --------- Layout 0 ASCII 0 Keyboard 0 Movement Mouse Keybinds 0 Fullscreen 1 Font 18/SmallcapsGlow Map View 76x50 Zoom Use 0% Tactical HUD 1 Map Filters NONE Filters NONE Steam 1 RUN: d738fd55-da44-4486-8af3-3b8faef566de